bitfinex/quotes_BTCUSD_20220218
["timestamp","ask_amount","ask_price","bid_price","bid_amount"]
[1645172003720,0.00072797,40774.0,40770.0,0.00010944]
[1645172004269,0.00026863,40773.0,40770.0,0.00010944]
[1645172005067,0.20970209,40774.0,40770.0,0.00010944]
[1645172005267,0.20997072,40774.0,40770.0,0.00010944]
[1645172005468,0.0009966,40774.0,40770.0,0.00010944]
[1645172005668,0.0009966,40774.0,40770.0,0.00310944]
[1645172006269,0.20970209,40774.0,40770.0,0.00310944]
[1645172006468,0.20997072,40774.0,40770.0,0.00310944]
[1645172006669,0.0009966,40774.0,40770.0,0.00310944]
[1645172006872,0.0009966,40774.0,40770.0,0.00010944]
[1645172007069,0.20997072,40774.0,40772.0,0.00129781]
[1645172007469,0.20970209,40774.0,40772.0,0.00129781]
[1645172008118,0.00072797,40774.0,40772.0,0.00129781]
[1645172008316,0.00072797,40774.0,40772.0,0.00141313]
[1645172009718,0.00072797,40774.0,40772.0,0.00441313]
[1645172010320,0.20970209,40774.0,40772.0,0.00441313]
[1645172010921,0.20970209,40774.0,40772.0,0.00141313]
[1645172011769,0.20970209,40774.0,40772.0,0.00441313]
[1645172011973,0.00072797,40774.0,40772.0,0.00441313]
[1645172012175,0.331514,40773.0,40772.0,0.00441313]
[1645172012368,0.26194561,40774.0,40772.0,0.00441313]
[1645172012769,0.26224621,40774.0,40772.0,0.00441313]
[1645172013674,0.331514,40773.0,40772.0,0.00441313]
[1645172014273,0.331514,40773.0,40772.0,0.00141313]
[1645172014473,0.33091873,40773.0,40772.0,0.00141313]
[1645172014877,0.20904832,40773.0,40772.0,0.00141313]
[1645172017025,0.20904832,40773.0,40772.0,0.00011532]
[1645172017624,0.20904832,40773.0,40772.0,0.00411532]
[1645172018323,0.5527414,40773.0,40772.0,0.00411532]
[1645172018978,0.20904832,40773.0,40772.0,0.00011532]
[1645172020175,0.00102857,40774.0,40772.0,0.00011532]
[1645172020674,0.26224621,40774.0,40772.0,0.00011532]
[1645172021175,0.330947,40773.0,40772.0,0.00011532]
[1645172021576,0.26224621,40774.0,40772.0,0.00011532]
[1645172022576,0.330947,40773.0,40772.0,0.00011532]
[1645172022814,0.26224621,40774.0,40772.0,0.00011532]
[1645172023214,0.26224621,40774.0,40767.0,0.0001122]
[1645172023415,0.20908553,40772.0,40767.0,0.0001122]
[1645172023815,0.20908553,40772.0,40767.0,0.0041122]
[1645172024018,0.20908553,40771.0,40767.0,0.0041122]
[1645172024817,0.20938613,40771.0,40767.0,0.0041122]
[1645172025020,0.20938613,40771.0,40767.0,0.0001122]
[1645172025617,0.20935417,40771.0,40767.0,0.0001122]
[1645172025819,0.20935417,40771.0,40768.0,0.331476]
[1645172026668,0.20908553,40771.0,40767.0,0.0051122]
[1645172026872,0.0003006,40772.0,40768.0,0.331476]
[1645172026873,0.00056924,40772.0,40768.0,0.331476]
[1645172027072,0.00026864,40772.0,40768.0,0.380676]
[1645172027268,0.00026864,40772.0,40768.0,0.480676]
[1645172027269,0.00056924,40772.0,40768.0,0.480676]
[1645172027470,0.00026864,40772.0,40769.0,0.3]
[1645172027674,0.00026864,40772.0,40770.0,0.380676]
[1645172027870,0.0003006,40773.0,40771.0,0.0492]
[1645172028069,0.0003006,40773.0,40772.0,0.331476]
[1645172028070,0.00026863,40773.0,40772.0,0.331476]
[1645172028270,0.00056923,40773.0,40772.0,0.380676]
[1645172028468,0.00026863,40773.0,40772.0,0.480676]
[1645172029069,0.00102857,40774.0,40772.0,0.480676]
[1645172030333,0.00102857,40774.0,40772.0,0.1492]
[1645172030732,0.00102857,40774.0,40772.0,0.0492]
[1645172031934,0.00102857,40774.0,40771.0,0.331476]
[1645172032232,0.00102857,40774.0,40772.0,0.0492]
[1645172033132,0.00102857,40774.0,40773.0,0.00011211]
[1645172033334,0.00072797,40774.0,40773.0,0.00011211]
[1645172037081,0.00072797,40774.0,40773.0,0.00151808]
[1645172038027,0.29925791,40774.0,40773.0,0.00151808]
[1645172038229,0.83929044,40774.0,40773.0,0.00151808]
[1645172038622,0.50834344,40774.0,40773.0,0.00151808]
[1645172039423,0.2098135,40774.0,40773.0,0.00151808]
[1645172039926,0.5407605,40774.0,40773.0,0.00151808]
[1645172040528,0.8547341,40774.0,40773.0,0.00151808]
[1645172040924,0.5237871,40774.0,40773.0,0.00151808]
[1645172041669,0.8547341,40774.0,40773.0,0.00151808]
[1645172042069,0.91837475,40774.0,40773.0,0.00151808]
[1645172042271,0.330947,40771.0,40768.0,0.004]
[1645172042570,0.54001054,40769.0,40768.0,0.004]
[1645172042768,0.330947,40769.0,40768.0,0.004]
[1645172043172,0.330947,40768.0,40762.0,0.1]
[1645172043370,0.40406954,40769.0,40762.0,0.1]
[1645172043771,0.00026914,40767.0,40759.0,0.00034728]
[1645172043970,0.40406954,40769.0,40757.0,0.00534728]
[1645172044171,0.20906354,40767.0,40757.0,0.00534728]
[1645172044771,0.330947,40767.0,40757.0,0.00534728]
[1645172045070,0.31490727,40761.0,40757.0,0.00534728]
[1645172045330,0.62656354,40768.0,40757.0,0.00034728]
[1645172045628,0.330947,40767.0,40757.0,0.00034728]
[1645172045832,0.05,40767.0,40757.0,0.00434728]
[1645172046029,0.05,40767.0,40757.0,0.004]
[1645172046230,0.05,40767.0,40757.0,0.00434728]
[1645172046430,0.30207895,40762.0,40757.0,0.00434728]
[1645172046632,0.05,40767.0,40757.0,0.00434728]
[1645172047031,0.05,40767.0,40757.0,0.00034728]
[1645172047231,0.05,40767.0,40756.0,0.18949877]
[1645172047631,0.25075288,40763.0,40756.0,0.18949877]
[1645172047832,0.05,40767.0,40756.0,0.19349877]
[1645172048231,0.05,40767.0,40759.0,0.00014595]
[1645172048437,0.05,40767.0,40759.0,0.00041513]
[1645172048834,0.76301957,40768.0,40759.0,0.00041513]
[1645172049081,0.330947,40767.0,40759.0,0.00041513]
[1645172049481,0.4175,40768.0,40759.0,0.00041513]
[1645172049482,0.4175,40768.0,40759.0,0.00014595]
[1645172049679,0.4175,40768.0,40759.0,0.00041514]
[1645172049882,0.4175,40768.0,40759.0,0.00341514]
[1645172050081,0.3176109,40765.0,40759.0,0.00341514]
[1645172050380,0.4175,40768.0,40759.0,0.00341514]
[1645172050580,0.4175,40768.0,40759.0,0.00314595]
[1645172050782,0.4175,40768.0,40759.0,0.00341514]
[1645172051186,0.35034949,40766.0,40759.0,0.00041514]
[1645172051383,0.4175,40768.0,40759.0,0.00041514]
[1645172051784,0.4175,40768.0,40759.0,0.00014595]
[1645172051986,0.4175,40768.0,40759.0,0.00041514]
[1645172052388,0.28653918,40767.0,40759.0,0.00041514]
[1645172052585,0.4175,40768.0,40759.0,0.00041514]
[1645172053022,0.4175,40768.0,40759.0,0.00014595]
[1645172053223,0.4175,40768.0,40759.0,0.00041514]
[1645172053423,0.4175,40768.0,40759.0,0.00026919]
[1645172053822,0.4175,40768.0,40759.0,0.00526919]
[1645172054222,0.4175,40768.0,40759.0,0.005]
[1645172054423,2.0199866,40763.0,40759.0,0.00526919]
[1645172054624,0.1175,40768.0,40759.0,0.00526919]
[1645172054825,0.4175,40768.0,40759.0,0.00526919]
[1645172055425,0.4175,40768.0,40759.0,0.005]
[1645172055627,0.4175,40768.0,40759.0,0.00026919]
[1645172055825,0.4175,40768.0,40759.0,0.06660519]
[1645172056026,0.3,40768.0,40759.0,0.06660519]
[1645172056668,0.3,40768.0,40759.0,0.066336]
[1645172056868,0.3,40768.0,40759.0,0.06660519]
[1645172057069,0.3,40768.0,40759.0,0.06160519]
[1645172057469,0.31359011,40769.0,40759.0,0.06160519]
[1645172057671,0.00026912,40769.0,40760.0,0.631476]
[1645172057871,0.0096,40770.0,40760.0,0.4]
[1645172058171,0.00011518,40769.0,40761.0,0.00015804]
[1645172058571,0.00011518,40769.0,40761.0,0.00935804]
[1645172058776,0.00011518,40769.0,40762.0,0.331476]
[1645172058777,0.32877981,40767.0,40762.0,0.331476]
[1645172059072,0.00011518,40769.0,40761.0,0.00935804]
[1645172059073,0.0096,40770.0,40763.0,0.3]
[1645172059274,0.00011518,40769.0,40763.0,0.3]
[1645172059774,0.00011518,40769.0,40763.0,0.305]
[1645172060227,0.0096,40770.0,40763.0,0.405]
[1645172060730,0.00026909,40769.0,40764.0,0.331476]
[1645172060929,0.00026909,40769.0,40764.0,0.431476]
[1645172061530,0.0096,40770.0,40764.0,0.431476]
[1645172061727,0.00026909,40769.0,40764.0,0.431476]
[1645172061927,0.00026909,40769.0,40764.0,0.435476]
[1645172062628,0.0096,40770.0,40764.0,0.435476]
[1645172062828,0.0096,40770.0,40764.0,0.104]
[1645172063128,0.00026909,40769.0,40765.0,0.00018895]
[1645172063329,0.00026909,40769.0,40765.0,0.30018895]
[1645172063729,0.00026909,40769.0,40765.0,0.10018895]
[1645172063972,0.07358345,40771.0,40765.0,0.10018895]
[1645172064170,0.00026909,40769.0,40765.0,0.10018895]
[1645172064671,0.00026909,40769.0,40765.0,0.16151795]
[1645172064869,0.00026909,40769.0,40765.0,0.06151795]
[1645172065069,0.00026909,40769.0,40762.0,0.1492]
[1645172065070,0.1230359,40764.0,40763.0,0.331476]
[1645172065270,0.1230359,40764.0,40763.0,0.431476]
[1645172066270,0.12094376,40764.0,40763.0,0.431476]
[1645172067070,0.12094376,40764.0,40763.0,0.731476]
[1645172068325,0.12094376,40764.0,40763.0,0.431476]
[1645172069023,0.10420665,40764.0,40763.0,0.431476]
[1645172071122,0.10420665,40764.0,40763.0,0.1]
[1645172071322,0.10420665,40764.0,40762.0,0.331476]
[1645172071774,0.10420665,40764.0,40762.0,0.431476]
[1645172073174,0.10420665,40764.0,40763.0,0.0001704]
[1645172073375,0.10420665,40764.0,40763.0,0.3316464]
[1645172073577,0.10420665,40764.0,40763.0,0.4316464]
[1645172073776,0.10420665,40764.0,40763.0,0.0041704]
[1645172074974,0.43515365,40764.0,40763.0,0.0041704]
[1645172075220,0.43515365,40764.0,40763.0,0.0501704]
[1645172076020,0.73515365,40764.0,40763.0,0.0501704]
[1645172076821,0.78515365,40764.0,40763.0,0.0501704]
[1645172077222,0.45420665,40764.0,40763.0,0.0501704]
[1645172077822,0.40420665,40764.0,40763.0,0.0501704]
[1645172078222,0.73515365,40764.0,40763.0,0.0501704]
[1645172079480,0.43515365,40764.0,40763.0,0.0501704]
[1645172079682,0.73515365,40764.0,40763.0,0.0501704]
[1645172079876,0.10420665,40764.0,40763.0,0.0561704]
[1645172081081,0.10420665,40764.0,40763.0,0.0501704]
[1645172081678,0.40420665,40764.0,40763.0,0.0501704]
[1645172081879,0.43515365,40764.0,40763.0,0.0551704]
[1645172082079,0.10420665,40764.0,40763.0,0.0551704]
[1645172082479,0.40420665,40764.0,40763.0,0.0551704]
[1645172082739,0.10420665,40764.0,40763.0,0.0551704]
[1645172083139,0.43515365,40764.0,40763.0,0.0551704]
[1645172083340,0.10420665,40764.0,40763.0,0.0501704]
[1645172083540,0.43515365,40764.0,40763.0,0.0501704]
[1645172083740,0.15420665,40764.0,40763.0,0.0501704]
[1645172085945,0.10420665,40764.0,40763.0,0.0551704]
[1645172087172,0.10420665,40764.0,40763.0,0.0501704]
[1645172089473,0.09815728,40764.0,40763.0,0.0501704]
[1645172092027,0.09787832,40764.0,40763.0,0.0541704]
[1645172093725,0.09787832,40764.0,40763.0,0.0501704]
[1645172095071,0.3403408,40761.0,40760.0,0.33183165]
[1645172095276,0.3403408,40761.0,40760.0,0.431476]
[1645172095472,0.3403408,40761.0,40760.0,0.43183165]
[1645172095873,0.3403408,40761.0,40760.0,0.43583165]
[1645172096475,0.3403408,40761.0,40760.0,0.435476]
[1645172097077,0.3403408,40761.0,40760.0,0.431476]
[1645172097927,0.3403408,40761.0,40760.0,0.435476]
[1645172099124,0.3403408,40761.0,40760.0,0.431476]
[1645172099926,0.3403408,40761.0,40760.0,0.435476]
[1645172100326,0.3403408,40761.0,40760.0,0.335476]
[1645172100728,0.3403408,40761.0,40760.0,0.004]
[1645172100927,0.6403408,40761.0,40760.0,0.004]
[1645172101128,0.6403408,40761.0,40759.0,0.00035565]
[1645172101328,0.3,40760.0,40758.0,0.00026897]
[1645172101588,0.28167367,40761.0,40758.0,0.00026897]
[1645172101987,0.28167367,40761.0,40758.0,0.00626897]
[1645172102188,0.28167367,40761.0,40750.0,0.18406658]
[1645172102392,0.3479126,40758.0,40751.0,0.331476]
[1645172102588,0.28167367,40761.0,40757.0,0.00026123]
[1645172102990,0.28167367,40761.0,40758.0,0.331476]
[1645172103195,0.28167367,40761.0,40760.0,0.00014197]
[1645172103789,0.28167367,40761.0,40760.0,0.33161797]
[1645172103990,0.28167367,40761.0,40760.0,0.33561797]
[1645172104390,0.28167367,40761.0,40760.0,0.38481797]
[1645172105234,0.28167367,40761.0,40760.0,0.38081797]
[1645172105628,0.28167367,40761.0,40760.0,0.33161797]
[1645172106029,0.28167367,40761.0,40760.0,0.33561797]
[1645172107233,0.28167367,40761.0,40760.0,0.33161797]
[1645172107833,0.28167367,40761.0,40760.0,0.33661797]
[1645172109104,0.28167367,40761.0,40760.0,0.33161797]
[1645172109303,0.28167367,40761.0,40760.0,0.35737159]
[1645172109506,0.28167367,40761.0,40760.0,0.65737159]
[1645172109704,0.28167367,40761.0,40760.0,0.85737159]
[1645172110003,0.28167367,40761.0,40760.0,0.90957159]
[1645172110203,0.28167367,40761.0,40760.0,0.60957159]
[1645172110806,0.28167367,40761.0,40760.0,0.55957159]
[1645172111307,0.28167367,40761.0,40760.0,0.55657159]
[1645172111308,0.19397667,40761.0,40760.0,0.55657159]
[1645172111906,0.19397667,40761.0,40760.0,0.60657159]
[1645172114224,0.19397667,40761.0,40760.0,0.55657159]
[1645172115828,0.19397667,40761.0,40760.0,0.40657159]
[1645172116231,0.19397667,40761.0,40760.0,0.50657159]
[1645172116475,0.19397667,40761.0,40760.0,0.60657159]
[1645172117871,0.19397667,40761.0,40760.0,0.40657159]
[1645172118072,0.19397667,40761.0,40760.0,0.45657159]
[1645172118373,0.19397667,40761.0,40760.0,0.40657159]
[1645172118573,0.1936972,40761.0,40760.0,0.40657159]
[1645172118776,0.1936972,40761.0,40760.0,0.35737159]
[1645172119173,0.1936972,40761.0,40760.0,0.02589559]
[1645172121025,0.1896972,40761.0,40760.0,0.02589559]
[1645172122027,0.1896972,40761.0,40760.0,0.03089559]
[1645172123230,0.1896972,40761.0,40760.0,0.02589559]
[1645172123429,0.1896972,40761.0,40760.0,0.35737159]
[1645172123630,0.1896972,40761.0,40760.0,0.02589559]
[1645172124076,0.1896972,40761.0,40760.0,0.03089559]
[1645172124674,0.1896972,40761.0,40760.0,0.36237159]
[1645172125073,0.1896972,40761.0,40760.0,0.03089559]
[1645172125273,0.1896972,40761.0,40760.0,0.35737159]
[1645172125875,0.1896972,40761.0,40760.0,0.36237159]
[1645172126075,0.18955771,40761.0,40760.0,0.36237159]
[1645172127475,0.18955771,40761.0,40760.0,0.03089559]
[1645172127727,0.18955771,40761.0,40756.0,0.00986913]
[1645172127728,0.06143728,40759.0,40756.0,0.00986913]
[1645172127927,0.06143728,40759.0,40756.0,0.05026913]
[1645172128125,0.06143728,40759.0,40756.0,0.00026913]
[1645172128728,0.06143728,40759.0,40750.0,0.11]
[1645172128926,0.3072686,40759.0,40755.0,0.00026912]
[1645172129926,0.3072686,40759.0,40750.0,0.016]
[1645172130129,0.3072686,40759.0,40755.0,0.00026913]
[1645172131128,0.3072686,40759.0,40751.0,0.15]
[1645172131328,0.3072686,40759.0,40755.0,0.00026913]
[1645172132372,0.3072686,40759.0,40751.0,0.331476]
[1645172132572,0.3072686,40759.0,40755.0,0.00026913]
[1645172133572,0.3072686,40759.0,40757.0,0.0001909]
[1645172133774,0.3,40758.0,40757.0,0.0001909]
[1645172134174,0.3072686,40759.0,40757.0,0.0001909]
[1645172134575,0.3072686,40759.0,40758.0,0.331476]
[1645172134774,0.3072686,40759.0,40758.0,0.05]
[1645172134975,0.3072686,40759.0,40757.0,0.3316669]
[1645172135220,0.3072686,40759.0,40757.0,0.3816669]
[1645172135420,0.06143728,40759.0,40757.0,0.3816669]
[1645172137724,0.06143728,40759.0,40757.0,0.4816669]
[1645172137925,0.06143728,40759.0,40758.0,0.0492]
[1645172138123,0.06143728,40759.0,40758.0,0.38086673]
[1645172138327,0.06143728,40759.0,40758.0,0.68086673]
[1645172138524,0.06143728,40759.0,40758.0,0.38086673]
[1645172138989,0.06143728,40759.0,40758.0,0.68086673]
[1645172139978,0.06143728,40759.0,40758.0,0.38586673]
[1645172140982,0.06143728,40759.0,40758.0,0.78586673]
[1645172141188,0.06143728,40759.0,40758.0,0.48086673]
[1645172143625,0.06143728,40759.0,40758.0,0.48122059]
[1645172145127,0.05864742,40759.0,40758.0,0.48122059]
[1645172145626,0.05864742,40759.0,40758.0,0.48194592]
[1645172146027,0.05864742,40759.0,40758.0,0.48594592]
[1645172147277,0.05864742,40759.0,40758.0,0.48194592]
[1645172149279,0.05864742,40759.0,40758.0,0.43274592]
[1645172149675,0.05864742,40759.0,40758.0,0.43239206]
[1645172149877,0.05864742,40759.0,40758.0,0.48239206]
[1645172150074,0.05864742,40759.0,40758.0,0.48739206]
[1645172150527,0.05864742,40759.0,40758.0,0.33739206]
[1645172151226,0.05864742,40759.0,40758.0,0.33239206]
[1645172152724,0.05864742,40759.0,40758.0,0.43239206]
[1645172153983,0.05864742,40759.0,40758.0,0.43739206]
[1645172155278,0.05864742,40759.0,40758.0,0.43239206]
[1645172155882,0.05864742,40759.0,40758.0,0.48239206]
[1645172156079,0.05864742,40759.0,40758.0,0.48739206]
[1645172156480,0.05864742,40759.0,40758.0,0.48774592]
[1645172157281,0.05864742,40759.0,40758.0,0.48274592]
[1645172158628,0.05864742,40759.0,40758.0,0.53194592]
[1645172159431,0.05864742,40759.0,40758.0,0.81860661]
[1645172159629,0.05864742,40759.0,40758.0,0.53194592]
[1645172159828,0.05864742,40759.0,40758.0,0.72717894]
[1645172160028,0.05864742,40759.0,40758.0,0.53194592]
[1645172160232,0.05864742,40759.0,40758.0,0.72717894]
[1645172160428,0.05864742,40759.0,40758.0,0.53194592]
[1645172160629,0.05864742,40759.0,40758.0,0.72717894]
[1645172160828,0.05864742,40759.0,40758.0,0.53194592]
[1645172161678,0.05864742,40759.0,40758.0,0.72752209]
[1645172162079,0.05864742,40759.0,40758.0,0.73252209]
[1645172162678,0.05364742,40759.0,40758.0,0.73252209]
[1645172163281,0.05364742,40759.0,40758.0,0.72752209]
[1645172163681,0.05364742,40759.0,40758.0,0.96752209]
[1645172164082,0.05364742,40759.0,40758.0,1.16275511]
[1645172164284,0.05364742,40759.0,40758.0,0.96752209]
[1645172164484,0.05364742,40759.0,40758.0,1.16275511]
[1645172164683,0.05364742,40759.0,40758.0,0.96752209]
[1645172164885,0.05364742,40759.0,40758.0,1.16275511]
[1645172165083,0.05364742,40759.0,40758.0,0.96752209]
[1645172165527,0.05364742,40759.0,40758.0,1.16275511]
[1645172165724,0.05364742,40759.0,40758.0,1.21275511]
[1645172166324,0.05364742,40759.0,40758.0,1.21675511]
[1645172166526,0.05364742,40759.0,40758.0,1.02117894]
[1645172166724,0.05350794,40759.0,40758.0,0.97117894]
[1645172166924,0.05350794,40759.0,40758.0,0.77594592]
[1645172167128,0.05350794,40759.0,40758.0,0.97117894]
[1645172167325,0.05350794,40759.0,40758.0,0.77594592]
[1645172167626,0.05350794,40759.0,40758.0,0.96717894]
[1645172167827,0.05350794,40759.0,40758.0,0.77194592]
[1645172168029,0.05350794,40759.0,40758.0,0.96682508]
[1645172168227,0.05350794,40759.0,40758.0,0.77159206]
[1645172169282,0.05350794,40759.0,40758.0,0.72239206]
[1645172169485,0.05350794,40759.0,40758.0,0.67239206]
[1645172169683,0.05350794,40759.0,40758.0,0.57239206]
[1645172171088,0.05350794,40759.0,40758.0,0.63372506]
[1645172171286,0.05350794,40759.0,40758.0,0.68372506]
[1645172171486,0.05350794,40759.0,40758.0,0.72239206]
[1645172174326,0.05294533,40759.0,40758.0,0.72239206]
[1645172176129,0.05294533,40759.0,40758.0,0.72639206]
[1645172177380,0.05294533,40759.0,40758.0,0.72239206]
[1645172182126,0.05294533,40759.0,40758.0,0.72639206]
[1645172183982,0.05294533,40759.0,40758.0,0.72239206]
[1645172188128,0.05294533,40759.0,40758.0,0.72639206]
[1645172189328,0.05294533,40759.0,40758.0,0.72239206]
[1645172190130,0.05294533,40759.0,40758.0,0.72639206]
[1645172190732,0.05294533,40759.0,40758.0,0.67639206]
[1645172191345,0.05294533,40759.0,40758.0,0.67239206]
[1645172192173,0.05294533,40759.0,40758.0,0.7023576]
[1645172193374,0.05294533,40759.0,40758.0,0.6983576]
[1645172194374,0.05294533,40759.0,40758.0,1.06189999]
[1645172195076,0.05294533,40759.0,40758.0,1.09239206]
[1645172195326,0.05294533,40759.0,40758.0,1.28762508]
[1645172196330,0.05284423,40759.0,40758.0,1.28762508]
[1645172199387,0.05284423,40759.0,40758.0,0.95614908]
[1645172199388,0.39431521,40759.0,40758.0,0.95614908]
[1645172199587,0.69431521,40759.0,40758.0,0.95614908]
[1645172199786,0.69431521,40759.0,40758.0,0.66091606]
[1645172199986,0.74431521,40759.0,40758.0,0.42091606]
[1645172200288,0.44431521,40759.0,40758.0,0.42091606]
[1645172200485,0.44431521,40759.0,40757.0,0.42]
[1645172200486,0.44431521,40759.0,40757.0,0.28301104]
[1645172201689,0.3,40758.0,40757.0,0.28301104]
[1645172201886,0.44431521,40759.0,40757.0,0.28301104]
[1645172202286,0.42931521,40759.0,40757.0,0.28301104]
[1645172202727,0.3,40758.0,40757.0,0.28301104]
[1645172202927,0.42931521,40759.0,40757.0,0.28301104]
[1645172203530,0.42931521,40759.0,40758.0,0.00019576]
[1645172204030,0.39431521,40759.0,40758.0,0.00019576]
[1645172204231,0.44431521,40759.0,40758.0,0.00019576]
[1645172204428,0.74431521,40759.0,40758.0,0.00019576]
[1645172204627,0.69431521,40759.0,40758.0,0.00019576]
[1645172205229,0.74431521,40759.0,40758.0,0.00019576]
[1645172206031,0.44431521,40759.0,40758.0,0.00019576]
[1645172208392,0.44447385,40759.0,40757.0,0.70318773]
[1645172208791,0.44447385,40759.0,40757.0,0.70354159]
[1645172209496,0.39447385,40759.0,40757.0,0.70318773]
[1645172209792,0.44447385,40759.0,40757.0,0.70354159]
[1645172210093,0.3,40758.0,40757.0,0.70354159]
[1645172210532,0.44447385,40759.0,40757.0,0.70354159]
[1645172210729,0.44447385,40759.0,40757.0,0.70318773]
[1645172210730,0.39447385,40759.0,40757.0,0.70318773]
[1645172211130,0.3,40758.0,40757.0,0.70318773]
[1645172211532,0.39447385,40759.0,40757.0,0.70318773]
[1645172211730,0.44447385,40759.0,40757.0,0.70318773]
[1645172212045,0.05300287,40759.0,40758.0,0.331476]
[1645172213232,0.05300287,40759.0,40758.0,0.33165269]
[1645172214280,0.05300287,40759.0,40758.0,0.33565269]
[1645172214879,0.05300287,40759.0,40758.0,0.63565269]
[1645172215480,0.05300287,40759.0,40758.0,0.63165269]
[1645172215681,0.05300287,40759.0,40758.0,0.33165269]
[1645172216280,0.05300287,40759.0,40758.0,0.63565269]
[1645172217482,0.05300287,40759.0,40758.0,0.63165269]
[1645172218127,0.05284423,40759.0,40758.0,0.63665269]
[1645172219128,0.05284423,40759.0,40758.0,0.33665269]
[1645172219530,0.05284423,40759.0,40758.0,0.33165269]
[1645172220731,0.05284423,40759.0,40758.0,0.33200655]
[1645172221983,0.05284423,40759.0,40758.0,0.43200655]
[1645172222186,0.05284423,40759.0,40758.0,0.43600655]
[1645172223086,0.05284423,40759.0,40758.0,0.48520655]
[1645172223486,0.05284423,40759.0,40758.0,0.48120655]
[1645172224187,0.05284423,40759.0,40758.0,0.48520655]
[1645172225442,0.05284423,40759.0,40758.0,0.48120655]
[1645172225645,0.05276726,40759.0,40758.0,0.48120655]
[1645172226142,0.05276726,40759.0,40758.0,0.48520655]
[1645172227649,0.05276726,40759.0,40758.0,0.48120655]
[1645172228147,0.05252192,40759.0,40758.0,0.48620655]
[1645172229382,0.05252192,40759.0,40758.0,0.48120655]
[1645172230185,0.05252192,40759.0,40758.0,0.48620655]
[1645172231683,0.05252192,40759.0,40758.0,0.48120655]
[1645172232386,0.05252192,40759.0,40758.0,0.48620655]
[1645172233133,0.05029024,40759.0,40758.0,0.48620655]
[1645172233532,0.05029024,40759.0,40758.0,0.78120655]
[1645172233732,0.05029024,40759.0,40758.0,0.14973055]
[1645172233931,0.05029024,40759.0,40758.0,0.04973055]
[1645172235234,0.05029024,40759.0,40758.0,0.38120655]
[1645172235431,0.05029024,40759.0,40758.0,0.14973055]
[1645172235632,0.05029024,40759.0,40758.0,0.48120655]
[1645172235834,0.05029024,40759.0,40758.0,0.14973055]
[1645172236680,0.05029024,40759.0,40758.0,0.38120655]
[1645172236880,0.05029024,40759.0,40758.0,0.48120655]
[1645172238279,0.05045426,40759.0,40758.0,0.48120655]
[1645172239683,0.05045426,40759.0,40758.0,0.76163854]
[1645172239886,0.05045426,40759.0,40758.0,1.06163854]
[1645172240086,0.05045426,40759.0,40758.0,1.7409331]
[1645172240335,0.05045426,40759.0,40758.0,1.64015276]
[1645172240934,0.05029024,40759.0,40758.0,1.64015276]
[1645172241632,0.05029024,40759.0,40758.0,1.63615276]
[1645172241833,0.05029024,40759.0,40758.0,1.68615276]
[1645172242233,0.05029024,40759.0,40758.0,1.81380576]
[1645172243633,0.05029024,40759.0,40758.0,1.80880576]
[1645172244286,0.05029024,40759.0,40758.0,1.81380576]
[1645172246086,0.05029024,40759.0,40758.0,1.80880576]
[1645172246285,0.04959284,40759.0,40758.0,1.80880576]
[1645172247186,0.04959284,40759.0,40758.0,3.10880576]
[1645172247588,0.0003006,40764.0,40759.0,0.331476]
[1645172247831,0.0003006,40769.0,40763.0,0.331476]
[1645172248033,0.0003006,40764.0,40763.0,0.631476]
[1645172248235,0.00025504,40765.0,40764.0,0.380676]
[1645172248433,0.00025504,40765.0,40764.0,0.780676]
[1645172248932,0.0003006,40769.0,40764.0,0.780676]
[1645172249134,0.00102857,40770.0,40769.0,0.25584143]
[1645172249336,0.00072797,40770.0,40769.0,0.63651743]
[1645172249535,0.00072797,40770.0,40769.0,0.8545067]
[1645172249734,0.00072797,40770.0,40769.0,0.9545067]
[1645172250335,0.00072797,40770.0,40769.0,1.15471147]
[1645172251498,0.00072797,40770.0,40769.0,1.14971147]
[1645172251690,0.00072797,40770.0,40769.0,1.19387004]
[1645172251888,0.00072797,40770.0,40769.0,0.99866527]
[1645172252290,0.00072797,40770.0,40769.0,1.00366527]
[1645172253189,0.00072797,40770.0,40769.0,1.00378161]
[1645172253591,0.00072797,40770.0,40769.0,1.1939657]
[1645172253990,0.00072797,40770.0,40769.0,0.99878161]
[1645172254391,0.00072797,40770.0,40769.0,1.00478161]
[1645172255236,0.00072797,40770.0,40769.0,1.04212201]
[1645172255438,0.00072797,40770.0,40769.0,0.73612201]
[1645172256840,0.00072797,40770.0,40769.0,1.03612201]
[1645172257042,0.00072797,40770.0,40769.0,0.73612201]
[1645172258987,0.00431967,40778.0,40770.0,1.2815754]
[1645172259190,0.00086057,40775.0,40773.0,0.392779]
[1645172259389,0.00086057,40775.0,40774.0,0.6638]
[1645172259588,0.00086057,40775.0,40774.0,0.995276]
[1645172259787,0.00086057,40775.0,40774.0,1.34044268]
[1645172260189,0.00086057,40775.0,40774.0,2.64044268]
[1645172260390,0.00086057,40775.0,40774.0,2.64544268]
[1645172260890,0.0034384,40781.0,40775.0,2.581476]
[1645172261097,0.0034384,40781.0,40779.0,0.6146]
[1645172261292,0.0034384,40781.0,40779.0,0.995276]
[1645172261492,0.0034384,40781.0,40780.0,0.75]
[1645172261493,0.0005384,40781.0,40780.0,0.75]
[1645172261692,0.0010152,40781.0,40780.0,1.745276]
[1645172261891,0.0010152,40781.0,40780.0,1.845276]
[1645172262291,0.0010152,40781.0,40780.0,1.850276]
[1645172263136,0.0010152,40781.0,40780.0,1.100276]
[1645172263636,0.0010152,40781.0,40780.0,1.095276]
[1645172264433,0.0010152,40781.0,40780.0,1.101276]
[1645172265036,0.0010152,40781.0,40780.0,1.001276]
[1645172265435,0.0010152,40781.0,40780.0,0.386676]
[1645172265634,0.0010152,40781.0,40780.0,0.380676]
[1645172266035,0.0010152,40781.0,40780.0,0.331476]
[1645172268286,0.0010152,40781.0,40780.0,0.33159139]
[1645172268686,0.55752259,40779.0,40775.0,0.006]
[1645172268890,0.55752259,40779.0,40776.0,0.331476]
[1645172269086,0.60752259,40779.0,40776.0,0.331476]
[1645172269287,0.14746284,40779.0,40776.0,0.331476]
[1645172270435,0.14746284,40779.0,40776.0,0.337476]
[1645172271237,0.19746284,40779.0,40776.0,0.337476]
[1645172271640,0.19746284,40779.0,40776.0,0.331476]
[1645172271641,0.3,40778.0,40776.0,0.331476]
[1645172271840,0.3,40778.0,40773.0,0.19517623]
[1645172272238,0.3,40778.0,40770.0,9.94e-05]
[1645172272439,0.3,40778.0,40771.0,0.336476]
[1645172272838,0.3,40778.0,40771.0,0.436476]
[1645172273041,0.35,40778.0,40771.0,0.436476]
[1645172273238,0.35,40778.0,40771.0,0.336476]
[1645172273439,0.00025578,40777.0,40771.0,0.336476]
[1645172273638,0.00025578,40777.0,40771.0,0.331476]
[1645172274087,0.34153971,40775.0,40771.0,0.331476]
[1645172274283,0.34153971,40775.0,40771.0,0.337476]